[Event "Titled Tuesday Blitz July 11 Early 2023"]
[White "Mogirzan, Matei-Valeriu"]
[Black "Avalos Parra, Joao"]
[WhiteFideId "1257455"]
[BlackFideId "3402541"]
[WhiteElo "2606"]
[BlackElo "2344"]
[Result "1-0"]
[Round "1"]
[TimeControl "180+2"]
[Date "2023.07.11"]
[WhiteClock "0:00:06"]
[BlackClock "0:00:14"]
[Board "134"]

1. e4 {[%clk 0:03:00]}  e5 {[%clk 0:02:59]} 2. f4 {[%clk 0:02:58]}  Nc6 {[%clk 0:02:59]} 3. Nf3 {[%clk 0:02:58]}  exf4 {[%clk 0:02:59]} 4. d4 {[%clk 0:02:58]}  d5 {[%clk 0:02:59]} 5. exd5 {[%clk 0:02:57]}  Qxd5 {[%clk 0:02:58]} 6. Nc3 {[%clk 0:02:56]}  Qd8 {[%clk 0:02:54]} 7. Bxf4 {[%clk 0:02:52]}  Nf6 {[%clk 0:02:53]} 8. d5 {[%clk 0:02:45]}  Nb4 {[%clk 0:02:48]} 9. Bc4 {[%clk 0:02:30]}  Be7 {[%clk 0:02:45]} 10. a3 {[%clk 0:02:24]}  Na6 {[%clk 0:02:44]} 11. O-O {[%clk 0:02:19]}  O-O {[%clk 0:02:44]} 12. Kh1 {[%clk 0:02:16]}  Nc5 {[%clk 0:02:44]} 13. Qe2 {[%clk 0:02:07]}  Bg4 {[%clk 0:02:42]} 14. b4 {[%clk 0:02:02]}  Ncd7 {[%clk 0:02:40]} 15. Nb5 {[%clk 0:01:57]}  Nb6 {[%clk 0:01:54]} 16. Bxc7 {[%clk 0:01:39]}  Qd7 {[%clk 0:01:50]} 17. Bxb6 {[%clk 0:01:36]}  axb6 {[%clk 0:01:51]} 18. d6 {[%clk 0:01:36]}  Bd8 {[%clk 0:01:43]} 19. Rad1 {[%clk 0:01:33]}  Rc8 {[%clk 0:01:43]} 20. Rd4 {[%clk 0:01:13]}  Re8 {[%clk 0:01:41]} 21. Qd3 {[%clk 0:00:54]}  Bf5 {[%clk 0:01:39]} 22. Qb3 {[%clk 0:00:47]}  Re4 {[%clk 0:01:28]} 23. Rxe4 {[%clk 0:00:35]}  Bxe4 {[%clk 0:01:26]} 24. Ne5 {[%clk 0:00:33]}  Bxc2 {[%clk 0:00:52]} 25. Nxd7 {[%clk 0:00:16]}  Bxb3 {[%clk 0:00:51]} 26. Nxf6+ {[%clk 0:00:16]}  Bxf6 {[%clk 0:00:48]} 27. Bxb3 {[%clk 0:00:16]}  h5 {[%clk 0:00:45]} 28. g3 {[%clk 0:00:16]}  Kh7 {[%clk 0:00:38]} 29. Bxf7 {[%clk 0:00:11]}  Rc2 {[%clk 0:00:34]} 30. Bxh5 {[%clk 0:00:10]}  Rd2 {[%clk 0:00:32]} 31. Rd1 {[%clk 0:00:07]}  Ra2 {[%clk 0:00:31]} 32. d7 {[%clk 0:00:07]}  Bd8 {[%clk 0:00:31]} 33. Bf3 {[%clk 0:00:05]}  Kg6 {[%clk 0:00:25]} 34. Be4+ {[%clk 0:00:05]}  Kf6 {[%clk 0:00:25]} 35. Bxb7 {[%clk 0:00:06]}  Re2 {[%clk 0:00:24]} 36. Rf1+ {[%clk 0:00:05]}  Ke7 {[%clk 0:00:23]} 37. Rd1 {[%clk 0:00:05]}  Re3 {[%clk 0:00:22]} 38. Nd4 {[%clk 0:00:06]}  Rc3 {[%clk 0:00:14]} 39. Nc6+ {[%clk 0:00:06]} 1-0


[Site "https://www.chess.com"]

[Event "Titled Tuesday Blitz July 11 Early 2023"]
[White "TomLiu777"]
[Black "Al-Tarboush, Ward"]
[BlackFideId "7601450"]
[WhiteElo "2339"]
[BlackElo "2605"]
[Result "0-1"]
[Round "1"]
[TimeControl "180+2"]
[Date "2023.07.11"]
[WhiteClock "0:00:01"]
[BlackClock "0:01:12"]
[Board "137"]

1. c4 {[%clk 0:03:00]}  c5 {[%clk 0:02:59]} 2. Nc3 {[%clk 0:02:59]}  Nc6 {[%clk 0:02:59]} 3. g3 {[%clk 0:03:00]}  g6 {[%clk 0:02:59]} 4. Bg2 {[%clk 0:03:01]}  Bg7 {[%clk 0:02:59]} 5. a3 {[%clk 0:03:01]}  a6 {[%clk 0:02:59]} 6. Rb1 {[%clk 0:02:59]}  Rb8 {[%clk 0:02:59]} 7. b4 {[%clk 0:02:57]}  cxb4 {[%clk 0:03:00]} 8. axb4 {[%clk 0:02:58]}  b5 {[%clk 0:03:00]} 9. cxb5 {[%clk 0:02:58]}  axb5 {[%clk 0:03:01]} 10. Nf3 {[%clk 0:02:57]}  d5 {[%clk 0:03:01]} 11. O-O {[%clk 0:02:56]}  Bf5 {[%clk 0:03:00]} 12. d4 {[%clk 0:02:50]}  Bxb1 {[%clk 0:02:59]} 13. Nxb1 {[%clk 0:02:48]}  Nxb4 {[%clk 0:02:57]} 14. Nc3 {[%clk 0:02:38]}  Nf6 {[%clk 0:02:56]} 15. Bf4 {[%clk 0:02:29]}  Rb7 {[%clk 0:02:54]} 16. e4 {[%clk 0:01:50]}  dxe4 {[%clk 0:02:48]} 17. Ne5 {[%clk 0:01:48]}  O-O {[%clk 0:02:46]} 18. Nxe4 {[%clk 0:01:45]}  Nxe4 {[%clk 0:02:42]} 19. Bxe4 {[%clk 0:01:46]}  Nd5 {[%clk 0:02:41]} 20. Nc6 {[%clk 0:01:02]}  Qd7 {[%clk 0:02:39]} 21. Qf3 {[%clk 0:00:59]}  e6 {[%clk 0:02:36]} 22. Ne5 {[%clk 0:00:59]}  Qe7 {[%clk 0:02:34]} 23. h4 {[%clk 0:00:27]}  b4 {[%clk 0:02:28]} 24. h5 {[%clk 0:00:27]}  g5 {[%clk 0:02:24]} 25. h6 {[%clk 0:00:25]}  Bxh6 {[%clk 0:02:19]} 26. Qh5 {[%clk 0:00:21]}  gxf4 {[%clk 0:02:17]} 27. Qxh6 {[%clk 0:00:19]}  f5 {[%clk 0:02:17]} 28. Bxd5 {[%clk 0:00:13]}  exd5 {[%clk 0:02:18]} 29. Qc6 {[%clk 0:00:13]}  fxg3 {[%clk 0:02:07]} 30. Qxd5+ {[%clk 0:00:13]}  Kh8 {[%clk 0:02:07]} 31. Nc6 {[%clk 0:00:06]}  gxf2+ {[%clk 0:02:06]} 32. Kxf2 {[%clk 0:00:06]}  Qh4+ {[%clk 0:02:05]} 33. Ke2 {[%clk 0:00:06]}  Re8+ {[%clk 0:02:03]} 34. Kd2 {[%clk 0:00:05]}  Qh2+ {[%clk 0:02:01]} 35. Kc1 {[%clk 0:00:06]}  Rc7 {[%clk 0:01:50]} 36. Rh1 {[%clk 0:00:04]}  Qf4+ {[%clk 0:01:47]} 37. Kb2 {[%clk 0:00:04]}  Qd2+ {[%clk 0:01:47]} 38. Kb1 {[%clk 0:00:03]}  Re1+ {[%clk 0:01:46]} 39. Rxe1 {[%clk 0:00:04]}  Qxe1+ {[%clk 0:01:47]} 40. Ka2 {[%clk 0:00:03]}  Qd2+ {[%clk 0:01:42]} 41. Ka1 {[%clk 0:00:03]}  Qc3+ {[%clk 0:01:41]} 42. Kb1 {[%clk 0:00:03]}  Qxc6 {[%clk 0:01:15]} 43. Qe5+ {[%clk 0:00:02]}  Kg8 {[%clk 0:01:14]} 44. d5 {[%clk 0:00:02]}  Qc2+ {[%clk 0:01:12]} 45. Ka1 {[%clk 0:00:01]}  Ra7# {[%clk 0:01:12]} 0-1


[Site "https://www.chess.com"]

[Event "Titled Tuesday Blitz July 11 Early 2023"]
[White "Janaszak, Dawid"]
[Black "Rodriguez Santiago, Jaime"]
[WhiteFideId "1119206"]
[BlackFideId "3100898"]
[WhiteElo "2605"]
[BlackElo "2337"]
[Result "0-1"]
[Round "1"]
[TimeControl "180+2"]
[Date "2023.07.11"]
[WhiteClock "0:00:31"]
[BlackClock "0:00:25"]
[Board "138"]

1. e4 {[%clk 0:03:00]}  c6 {[%clk 0:02:59]} 2. d4 {[%clk 0:02:58]}  d5 {[%clk 0:02:59]} 3. exd5 {[%clk 0:02:59]}  cxd5 {[%clk 0:02:59]} 4. Bd3 {[%clk 0:02:58]}  Nc6 {[%clk 0:02:58]} 5. c3 {[%clk 0:02:59]}  Qc7 {[%clk 0:02:59]} 6. Ne2 {[%clk 0:02:58]}  Bg4 {[%clk 0:02:57]} 7. O-O {[%clk 0:02:59]}  Nf6 {[%clk 0:02:56]} 8. Qe1 {[%clk 0:02:59]}  e6 {[%clk 0:02:56]} 9. f3 {[%clk 0:02:51]}  Bh5 {[%clk 0:02:55]} 10. Nf4 {[%clk 0:02:46]}  Bg6 {[%clk 0:02:42]} 11. Qh4 {[%clk 0:02:42]}  Rg8 {[%clk 0:02:18]} 12. Nxg6 {[%clk 0:02:38]}  hxg6 {[%clk 0:02:17]} 13. Bg5 {[%clk 0:02:34]}  Bd6 {[%clk 0:01:57]} 14. Na3 {[%clk 0:02:26]}  a6 {[%clk 0:01:55]} 15. b4 {[%clk 0:02:25]}  O-O-O {[%clk 0:01:36]} 16. f4 {[%clk 0:02:15]}  Rh8 {[%clk 0:01:34]} 17. Qe1 {[%clk 0:02:14]}  Rh7 {[%clk 0:01:29]} 18. b5 {[%clk 0:02:05]}  Bxa3 {[%clk 0:01:27]} 19. bxc6 {[%clk 0:02:06]}  Qxc6 {[%clk 0:01:25]} 20. Rb1 {[%clk 0:02:04]}  Rd7 {[%clk 0:01:11]} 21. h3 {[%clk 0:01:56]}  Rc7 {[%clk 0:01:05]} 22. Rb3 {[%clk 0:01:44]}  Bd6 {[%clk 0:01:03]} 23. Qb1 {[%clk 0:01:42]}  Ne4 {[%clk 0:00:56]} 24. Rb6 {[%clk 0:01:34]}  Qd7 {[%clk 0:00:40]} 25. Bxe4 {[%clk 0:01:34]}  dxe4 {[%clk 0:00:40]} 26. Qxe4 {[%clk 0:01:32]}  f6 {[%clk 0:00:38]} 27. Qxg6 {[%clk 0:01:20]}  Rh8 {[%clk 0:00:39]} 28. Re1 {[%clk 0:01:13]}  fxg5 {[%clk 0:00:38]} 29. Rxe6 {[%clk 0:01:13]}  Bxf4 {[%clk 0:00:37]} 30. Qd3 {[%clk 0:01:06]}  Re8 {[%clk 0:00:33]} 31. d5 {[%clk 0:01:07]}  Rxe6 {[%clk 0:00:30]} 32. Rxe6 {[%clk 0:01:08]}  Qb5 {[%clk 0:00:28]} 33. Qf5 {[%clk 0:01:02]}  Kb8 {[%clk 0:00:26]} 34. Qf8+ {[%clk 0:00:38]}  Ka7 {[%clk 0:00:26]} 35. Qe8 {[%clk 0:00:32]}  Qb6+ {[%clk 0:00:25]} 36. Kf1 {[%clk 0:00:32]}  Qb1+ {[%clk 0:00:25]} 37. Ke2 {[%clk 0:00:32]}  Qc2+ {[%clk 0:00:25]} 38. Kf3 {[%clk 0:00:32]}  Rxc3+ {[%clk 0:00:25]} 39. Kg4 {[%clk 0:00:33]}  Rg3+ {[%clk 0:00:25]} 40. Kh5 {[%clk 0:00:31]}  Qh7+ {[%clk 0:00:25]} 0-1


[Site "https://www.chess.com"]

[Event "Titled Tuesday Blitz July 11 Early 2023"]
[White "Sawyer, Bradley"]
[Black "Pinheiro, Iung Alicio de O."]
[WhiteFideId "2023784"]
[BlackFideId "2104350"]
[WhiteElo "2331"]
[BlackElo "2599"]
[Result "0-1"]
[Round "1"]
[TimeControl "180+2"]
[Date "2023.07.11"]
[WhiteClock "0:00:11"]
[BlackClock "0:00:16"]
[Board "141"]

1. Nf3 {[%clk 0:02:47]}  d5 {[%clk 0:02:57]} 2. b3 {[%clk 0:02:47]}  Nc6 {[%clk 0:02:52]} 3. Bb2 {[%clk 0:02:46]}  f6 {[%clk 0:02:51]} 4. d4 {[%clk 0:02:45]}  Bf5 {[%clk 0:02:44]} 5. g3 {[%clk 0:02:39]}  Nb4 {[%clk 0:02:41]} 6. Na3 {[%clk 0:02:38]}  Qd7 {[%clk 0:02:41]} 7. h3 {[%clk 0:02:33]}  g5 {[%clk 0:02:38]} 8. Bg2 {[%clk 0:02:33]}  h5 {[%clk 0:02:37]} 9. Qd2 {[%clk 0:02:24]}  e6 {[%clk 0:02:35]} 10. Rc1 {[%clk 0:02:17]}  Nxa2 {[%clk 0:02:32]} 11. Rd1 {[%clk 0:02:10]}  Bb4 {[%clk 0:02:16]} 12. c3 {[%clk 0:02:10]}  Nxc3 {[%clk 0:02:14]} 13. Bxc3 {[%clk 0:02:08]}  Bxa3 {[%clk 0:02:14]} 14. b4 {[%clk 0:02:09]}  a5 {[%clk 0:01:54]} 15. Ra1 {[%clk 0:02:08]}  Qa4 {[%clk 0:01:39]} 16. O-O {[%clk 0:02:07]}  Ne7 {[%clk 0:01:33]} 17. bxa5 {[%clk 0:02:06]}  Qb3 {[%clk 0:01:24]} 18. e3 {[%clk 0:01:49]}  Bd6 {[%clk 0:01:22]} 19. Rfc1 {[%clk 0:01:48]}  Kf7 {[%clk 0:01:14]} 20. Bf1 {[%clk 0:01:48]}  b5 {[%clk 0:00:57]} 21. axb6 {[%clk 0:01:41]}  cxb6 {[%clk 0:00:55]} 22. h4 {[%clk 0:01:41]}  gxh4 {[%clk 0:00:43]} 23. Nxh4 {[%clk 0:01:41]}  Be4 {[%clk 0:00:44]} 24. Bd3 {[%clk 0:01:36]}  Rxa1 {[%clk 0:00:36]} 25. Rxa1 {[%clk 0:01:35]}  Rc8 {[%clk 0:00:34]} 26. Bxe4 {[%clk 0:01:21]}  dxe4 {[%clk 0:00:27]} 27. Qe2 {[%clk 0:00:59]}  Qd5 {[%clk 0:00:26]} 28. Be1 {[%clk 0:00:55]}  Ng6 {[%clk 0:00:26]} 29. Nxg6 {[%clk 0:00:49]}  Kxg6 {[%clk 0:00:27]} 30. Kg2 {[%clk 0:00:48]}  b5 {[%clk 0:00:27]} 31. Rb1 {[%clk 0:00:41]}  b4 {[%clk 0:00:26]} 32. Rb2 {[%clk 0:00:23]}  Qc4 {[%clk 0:00:22]} 33. Qxc4 {[%clk 0:00:19]}  Rxc4 {[%clk 0:00:23]} 34. Kf1 {[%clk 0:00:19]}  Kf7 {[%clk 0:00:20]} 35. Ke2 {[%clk 0:00:20]}  Ke7 {[%clk 0:00:21]} 36. Kd1 {[%clk 0:00:17]}  Kd7 {[%clk 0:00:21]} 37. Rc2 {[%clk 0:00:17]}  Rc6 {[%clk 0:00:17]} 38. Rxc6 {[%clk 0:00:17]}  Kxc6 {[%clk 0:00:17]} 39. Kc2 {[%clk 0:00:18]}  Kb5 {[%clk 0:00:18]} 40. Kb3 {[%clk 0:00:19]}  f5 {[%clk 0:00:18]} 41. Bd2 {[%clk 0:00:19]}  Be7 {[%clk 0:00:17]} 42. Be1 {[%clk 0:00:19]}  Bd6 {[%clk 0:00:16]} 43. Bd2 {[%clk 0:00:20]}  Bf8 {[%clk 0:00:16]} 44. Be1 {[%clk 0:00:20]}  Be7 {[%clk 0:00:17]} 45. Bd2 {[%clk 0:00:20]}  h4 {[%clk 0:00:18]} 46. gxh4 {[%clk 0:00:19]}  Bxh4 {[%clk 0:00:19]} 47. Be1 {[%clk 0:00:17]}  Be7 {[%clk 0:00:16]} 48. Bd2 {[%clk 0:00:17]}  Bd6 {[%clk 0:00:16]} 49. Be1 {[%clk 0:00:17]}  Bf8 {[%clk 0:00:15]} 50. Bd2 {[%clk 0:00:18]}  Bd6 {[%clk 0:00:16]} 51. Be1 {[%clk 0:00:18]}  e5 {[%clk 0:00:15]} 52. dxe5 {[%clk 0:00:18]}  Bxe5 {[%clk 0:00:16]} 53. Bxb4 {[%clk 0:00:18]}  Kc6 {[%clk 0:00:16]} 54. Be1 {[%clk 0:00:18]}  Kd5 {[%clk 0:00:17]} 55. Bc3 {[%clk 0:00:17]}  Bh2 {[%clk 0:00:14]} 56. Kc2 {[%clk 0:00:18]}  Bg1 {[%clk 0:00:14]} 57. Be1 {[%clk 0:00:18]}  Kc4 {[%clk 0:00:14]} 58. Kd2 {[%clk 0:00:19]}  Bh2 {[%clk 0:00:15]} 59. Ke2 {[%clk 0:00:20]}  Be5 {[%clk 0:00:15]} 60. f3 {[%clk 0:00:20]}  Bc3 {[%clk 0:00:15]} 61. Bxc3 {[%clk 0:00:20]}  Kxc3 {[%clk 0:00:16]} 62. fxe4 {[%clk 0:00:17]}  fxe4 {[%clk 0:00:17]} 63. Kf2 {[%clk 0:00:14]}  Kd3 {[%clk 0:00:17]} 64. Kf1 {[%clk 0:00:15]}  Kxe3 {[%clk 0:00:17]} 65. Ke1 {[%clk 0:00:16]}  Kf3 {[%clk 0:00:15]} 66. Kf1 {[%clk 0:00:16]}  e3 {[%clk 0:00:15]} 67. Ke1 {[%clk 0:00:11]}  e2 {[%clk 0:00:16]} 0-1


[Site "https://www.chess.com"]

[Event "Titled Tuesday Blitz July 11 Early 2023"]
[White "Shukhman, Anna"]
[Black "Bogaudinov, Rushan"]
[WhiteFideId "54180058"]
[BlackFideId "4129288"]
[WhiteElo "2598"]
[BlackElo "2327"]
[Result "1-0"]
[Round "1"]
[TimeControl "180+2"]
[Date "2023.07.11"]
[WhiteClock "0:00:18"]
[BlackClock "0:00:05"]
[Board "142"]

1. e4 {[%clk 0:02:50]}  e6 {[%clk 0:02:59]} 2. d4 {[%clk 0:02:50]}  a6 {[%clk 0:02:58]} 3. c4 {[%clk 0:02:48]}  Nf6 {[%clk 0:02:55]} 4. Nc3 {[%clk 0:02:47]}  Bb4 {[%clk 0:02:53]} 5. e5 {[%clk 0:02:45]}  Ne4 {[%clk 0:02:49]} 6. Qc2 {[%clk 0:02:44]}  d5 {[%clk 0:02:41]} 7. Bd3 {[%clk 0:02:32]}  Nc6 {[%clk 0:02:24]} 8. Nf3 {[%clk 0:02:30]}  Nxc3 {[%clk 0:02:06]} 9. bxc3 {[%clk 0:02:30]}  Be7 {[%clk 0:02:07]} 10. O-O {[%clk 0:02:29]}  h6 {[%clk 0:02:05]} 11. h3 {[%clk 0:02:23]}  dxc4 {[%clk 0:01:59]} 12. Bxc4 {[%clk 0:02:22]}  b5 {[%clk 0:02:00]} 13. Bd3 {[%clk 0:02:22]}  Bb7 {[%clk 0:02:00]} 14. Be4 {[%clk 0:02:22]}  Na5 {[%clk 0:01:58]} 15. Bxb7 {[%clk 0:02:15]}  Nxb7 {[%clk 0:01:56]} 16. c4 {[%clk 0:02:16]}  O-O {[%clk 0:01:54]} 17. Rd1 {[%clk 0:02:11]}  bxc4 {[%clk 0:01:48]} 18. Qxc4 {[%clk 0:02:10]}  Na5 {[%clk 0:01:49]} 19. Qa4 {[%clk 0:02:01]}  Qd5 {[%clk 0:01:37]} 20. Bd2 {[%clk 0:02:01]}  Nc4 {[%clk 0:01:30]} 21. Rdc1 {[%clk 0:01:38]}  Nxd2 {[%clk 0:01:23]} 22. Nxd2 {[%clk 0:01:39]}  c5 {[%clk 0:01:20]} 23. Nf3 {[%clk 0:01:31]}  Rfd8 {[%clk 0:01:12]} 24. dxc5 {[%clk 0:01:26]}  Bxc5 {[%clk 0:01:06]} 25. Rd1 {[%clk 0:01:25]}  Qb7 {[%clk 0:01:03]} 26. Rab1 {[%clk 0:01:25]}  Qa7 {[%clk 0:01:00]} 27. Qc2 {[%clk 0:01:19]}  Rxd1+ {[%clk 0:00:54]} 28. Rxd1 {[%clk 0:01:18]}  Rb8 {[%clk 0:00:50]} 29. Ne1 {[%clk 0:01:12]}  Bd4 {[%clk 0:00:42]} 30. Qd2 {[%clk 0:01:08]}  Bxe5 {[%clk 0:00:39]} 31. Nd3 {[%clk 0:01:06]}  Bf6 {[%clk 0:00:39]} 32. Qa5 {[%clk 0:00:59]}  Rb5 {[%clk 0:00:36]} 33. Qa4 {[%clk 0:00:57]}  Rd5 {[%clk 0:00:33]} 34. Nb4 {[%clk 0:00:48]}  Rxd1+ {[%clk 0:00:29]} 35. Qxd1 {[%clk 0:00:49]}  Qb7 {[%clk 0:00:24]} 36. Qa4 {[%clk 0:00:43]}  Qe4 {[%clk 0:00:19]} 37. Qa5 {[%clk 0:00:20]}  Kh7 {[%clk 0:00:16]} 38. Nxa6 {[%clk 0:00:18]}  Bd4 {[%clk 0:00:12]} 39. Qd2 {[%clk 0:00:17]}  Qb1+ {[%clk 0:00:12]} 40. Kh2 {[%clk 0:00:17]}  Be5+ {[%clk 0:00:10]} 41. g3 {[%clk 0:00:18]}  Qe4 {[%clk 0:00:09]} 42. Nc5 {[%clk 0:00:17]}  Qc6 {[%clk 0:00:07]} 43. Nd3 {[%clk 0:00:17]}  Bf6 {[%clk 0:00:06]} 44. Nf4 {[%clk 0:00:16]}  Bg5 {[%clk 0:00:05]} 45. Qd3+ {[%clk 0:00:16]}  g6 {[%clk 0:00:05]} 46. Ne2 {[%clk 0:00:16]}  Qa8 {[%clk 0:00:04]} 47. a3 {[%clk 0:00:15]}  Be7 {[%clk 0:00:04]} 48. Qd7 {[%clk 0:00:15]}  Qd8 {[%clk 0:00:03]} 49. Qxd8 {[%clk 0:00:15]}  Bxd8 {[%clk 0:00:04]} 50. a4 {[%clk 0:00:15]}  Bb6 {[%clk 0:00:03]} 51. Nc3 {[%clk 0:00:16]}  Bxf2 {[%clk 0:00:03]} 52. Ne4 {[%clk 0:00:15]}  Bb6 {[%clk 0:00:02]} 53. Nd6 {[%clk 0:00:14]}  Kg7 {[%clk 0:00:02]} 54. Nc8 {[%clk 0:00:14]}  Bc7 {[%clk 0:00:01]} 55. Ne7 {[%clk 0:00:14]}  Kf6 {[%clk 0:00:02]} 56. Nc6 {[%clk 0:00:14]}  Kf5 {[%clk 0:00:02]} 57. a5 {[%clk 0:00:14]}  Ke4 {[%clk 0:00:03]} 58. a6 {[%clk 0:00:15]}  f5 {[%clk 0:00:03]} 59. a7 {[%clk 0:00:15]}  Kd5 {[%clk 0:00:04]} 60. a8=Q {[%clk 0:00:15]}  Kd6 {[%clk 0:00:04]} 61. Nd4 {[%clk 0:00:15]}  e5 {[%clk 0:00:04]} 62. Qc6+ {[%clk 0:00:16]}  Ke7 {[%clk 0:00:04]} 63. Qxc7+ {[%clk 0:00:17]}  Kf6 {[%clk 0:00:04]} 64. Qd6+ {[%clk 0:00:17]}  Kg5 {[%clk 0:00:05]} 65. Qe7+ {[%clk 0:00:18]}  Kh5 {[%clk 0:00:05]} 66. Qh4# {[%clk 0:00:18]} 1-0


[Site "https://www.chess.com"]

[Event "Titled Tuesday Blitz July 11 Early 2023"]
[White "Weishaeutel, Moritz"]
[Black "Szente Varga, Fruzsina"]
[WhiteFideId "12967300"]
[BlackFideId "712264"]
[WhiteElo "2589"]
[BlackElo "2317"]
[Result "1-0"]
[Round "1"]
[TimeControl "180+2"]
[Date "2023.07.11"]
[WhiteClock "0:01:48"]
[BlackClock "0:00:12"]
[Board "148"]

1. e4 {[%clk 0:03:00]}  Nf6 {[%clk 0:02:48]} 2. Nc3 {[%clk 0:03:00]}  d5 {[%clk 0:02:34]} 3. e5 {[%clk 0:02:59]}  Nfd7 {[%clk 0:02:31]} 4. e6 {[%clk 0:02:59]}  fxe6 {[%clk 0:02:30]} 5. d4 {[%clk 0:03:00]}  Nf6 {[%clk 0:02:29]} 6. Nf3 {[%clk 0:02:59]}  g6 {[%clk 0:02:20]} 7. Bd3 {[%clk 0:02:55]}  Bg7 {[%clk 0:02:12]} 8. h4 {[%clk 0:02:54]}  c5 {[%clk 0:01:58]} 9. h5 {[%clk 0:02:40]}  c4 {[%clk 0:01:39]} 10. Be2 {[%clk 0:02:25]}  Nxh5 {[%clk 0:01:34]} 11. Ne5 {[%clk 0:02:24]}  Nf6 {[%clk 0:01:27]} 12. Bh6 {[%clk 0:02:13]}  O-O {[%clk 0:01:01]} 13. Qd2 {[%clk 0:02:09]}  Nc6 {[%clk 0:00:28]} 14. Bxg7 {[%clk 0:02:08]}  Kxg7 {[%clk 0:00:29]} 15. Qh6+ {[%clk 0:02:07]}  Kg8 {[%clk 0:00:29]} 16. Nxg6 {[%clk 0:02:06]}  Rf7 {[%clk 0:00:24]} 17. O-O-O {[%clk 0:02:02]}  Rg7 {[%clk 0:00:19]} 18. Ne5 {[%clk 0:01:59]}  Qc7 {[%clk 0:00:18]} 19. f4 {[%clk 0:01:49]}  a6 {[%clk 0:00:17]} 20. g4 {[%clk 0:01:49]}  b5 {[%clk 0:00:15]} 21. g5 {[%clk 0:01:48]}  Ne4 {[%clk 0:00:13]} 22. Nxe4 {[%clk 0:01:45]}  dxe4 {[%clk 0:00:14]} 23. g6 {[%clk 0:01:46]}  Nxe5 {[%clk 0:00:13]} 24. gxh7+ {[%clk 0:01:46]}  Kh8 {[%clk 0:00:13]} 25. Qxg7+ {[%clk 0:01:47]}  Kxg7 {[%clk 0:00:13]} 26. h8=Q+ {[%clk 0:01:48]}  Kf7 {[%clk 0:00:13]} 27. dxe5 {[%clk 0:01:48]}  Bb7 {[%clk 0:00:12]} 28. Bh5# {[%clk 0:01:48]} 1-0


[Site "https://www.chess.com"]

[Event "Titled Tuesday Blitz July 11 Early 2023"]
[White "Tologon tegin, Semetei"]
[Black "Romero Arzuaga, Yudel"]
[WhiteFideId "13800574"]
[BlackFideId "3521010"]
[WhiteElo "2583"]
[BlackElo "2303"]
[Result "1-0"]
[Round "1"]
[TimeControl "180+2"]
[Date "2023.07.11"]
[WhiteClock "0:01:19"]
[BlackClock "0:02:00"]
[Board "156"]

1. Nf3 {[%clk 0:02:55]}  d5 {[%clk 0:03:00]} 2. g3 {[%clk 0:02:53]}  e6 {[%clk 0:03:01]} 3. b3 {[%clk 0:02:53]}  Be7 {[%clk 0:03:02]} 4. Bb2 {[%clk 0:02:54]}  Nf6 {[%clk 0:03:00]} 5. c4 {[%clk 0:02:54]}  c6 {[%clk 0:03:00]} 6. Bg2 {[%clk 0:02:54]}  O-O {[%clk 0:03:00]} 7. O-O {[%clk 0:02:54]}  Nbd7 {[%clk 0:03:00]} 8. d3 {[%clk 0:02:53]}  b6 {[%clk 0:02:56]} 9. Nbd2 {[%clk 0:02:53]}  Bb7 {[%clk 0:02:57]} 10. e4 {[%clk 0:02:51]}  dxe4 {[%clk 0:02:52]} 11. dxe4 {[%clk 0:02:52]}  c5 {[%clk 0:02:51]} 12. Qe2 {[%clk 0:02:51]}  Qc7 {[%clk 0:02:50]} 13. e5 {[%clk 0:02:49]}  Nh5 {[%clk 0:02:46]} 14. Ne4 {[%clk 0:02:34]}  Rfd8 {[%clk 0:02:40]} 15. Nfg5 {[%clk 0:02:32]}  g6 {[%clk 0:02:37]} 16. f4 {[%clk 0:02:27]}  h6 {[%clk 0:02:29]} 17. Nxf7 {[%clk 0:01:59]}  Kxf7 {[%clk 0:02:28]} 18. f5 {[%clk 0:02:00]}  exf5 {[%clk 0:02:21]} 19. Rxf5+ {[%clk 0:01:43]}  Kg8 {[%clk 0:02:20]} 20. Rxh5 {[%clk 0:01:40]}  gxh5 {[%clk 0:02:19]} 21. Qxh5 {[%clk 0:01:38]}  Bf8 {[%clk 0:02:16]} 22. e6 {[%clk 0:01:20]}  Bg7 {[%clk 0:02:00]} 23. Qf7+ {[%clk 0:01:19]} 1-0


[Site "https://www.chess.com"]

[Event "Titled Tuesday Blitz July 11 Early 2023"]
[White "Wernberg, Hugo"]
[Black "mjbacojo"]
[WhiteFideId "1737511"]
[WhiteElo "2303"]
[BlackElo "2581"]
[Result "1-0"]
[Round "1"]
[TimeControl "180+2"]
[Date "2023.07.11"]
[WhiteClock "0:01:05"]
[BlackClock "0:02:00"]
[Board "157"]

1. d4 {[%clk 0:02:59]}  Nf6 {[%clk 0:02:56]} 2. c4 {[%clk 0:02:58]}  e6 {[%clk 0:02:55]} 3. Nf3 {[%clk 0:02:58]}  d5 {[%clk 0:02:56]} 4. g3 {[%clk 0:02:58]}  Bb4+ {[%clk 0:02:55]} 5. Bd2 {[%clk 0:02:57]}  O-O {[%clk 0:02:56]} 6. Bxb4 {[%clk 0:02:55]}  Re8 {[%clk 0:02:56]} 7. c5 {[%clk 0:02:44]}  a5 {[%clk 0:02:56]} 8. Bc3 {[%clk 0:02:43]}  b5 {[%clk 0:02:55]} 9. cxb6 {[%clk 0:02:42]}  cxb6 {[%clk 0:02:56]} 10. a4 {[%clk 0:02:38]}  Nc6 {[%clk 0:02:56]} 11. Bg2 {[%clk 0:02:38]}  Ba6 {[%clk 0:02:56]} 12. O-O {[%clk 0:02:37]}  Ne4 {[%clk 0:02:56]} 13. Re1 {[%clk 0:02:33]}  Rc8 {[%clk 0:02:55]} 14. e3 {[%clk 0:02:32]}  Ne7 {[%clk 0:02:55]} 15. Bf1 {[%clk 0:02:31]}  Bb7 {[%clk 0:02:55]} 16. Bg2 {[%clk 0:02:27]}  h5 {[%clk 0:02:55]} 17. Nfd2 {[%clk 0:02:26]}  Nf6 {[%clk 0:02:53]} 18. h4 {[%clk 0:02:25]}  Nf5 {[%clk 0:02:52]} 19. Na3 {[%clk 0:02:19]}  Ng4 {[%clk 0:02:47]} 20. Bf3 {[%clk 0:02:15]}  Nfh6 {[%clk 0:02:45]} 21. Bxg4 {[%clk 0:02:12]}  Nxg4 {[%clk 0:02:46]} 22. Nf3 {[%clk 0:02:11]}  Ba6 {[%clk 0:02:44]} 23. Nb5 {[%clk 0:02:11]}  f6 {[%clk 0:02:44]} 24. Nh2 {[%clk 0:02:10]}  Nh6 {[%clk 0:02:43]} 25. Qxh5 {[%clk 0:02:09]}  Rc4 {[%clk 0:02:43]} 26. Ng4 {[%clk 0:01:59]}  Nf5 {[%clk 0:02:44]} 27. Qg6 {[%clk 0:01:56]}  Rf8 {[%clk 0:02:44]} 28. h5 {[%clk 0:01:49]}  Ne7 {[%clk 0:02:42]} 29. Nh6+ {[%clk 0:01:47]}  Kh8 {[%clk 0:02:40]} 30. Nf7+ {[%clk 0:01:48]}  Rxf7 {[%clk 0:02:28]} 31. Qxf7 {[%clk 0:01:47]}  Nf5 {[%clk 0:02:28]} 32. Qg6 {[%clk 0:01:43]}  Bc8 {[%clk 0:02:23]} 33. Rec1 {[%clk 0:01:38]}  e5 {[%clk 0:02:11]} 34. dxe5 {[%clk 0:01:35]}  fxe5 {[%clk 0:02:11]} 35. Bxe5 {[%clk 0:01:34]}  Qe7 {[%clk 0:02:09]} 36. Rxc4 {[%clk 0:01:31]}  dxc4 {[%clk 0:02:10]} 37. Rd1 {[%clk 0:01:18]}  Kg8 {[%clk 0:02:06]} 38. Bc3 {[%clk 0:01:14]}  Nxe3 {[%clk 0:02:00]} 39. Re1 {[%clk 0:01:05]} 1-0


[Site "https://www.chess.com"]